fUSD/lending_fUSD_20241030
["ID","MTS","AMOUNT","RATE_DAILY","PERIOD"]
[341038321,1730299884515,-619.44,0.00032876,5]
[341038322,1730299884525,-1191.88,0.00032876,5]
[341038323,1730299884534,-246.19191194,0.00032876,5]
[341038324,1730299884544,-500.0,0.00032876,5]
[341038325,1730299884553,-500.0,0.00032876,5]
[341038326,1730299884563,-500.0,0.00032876,5]
[341038327,1730299884573,-500.0,0.00032876,5]
[341038328,1730299884583,-515.61326369,0.00032876,5]
[341038329,1730299884592,-500.0,0.00032876,5]
[341038330,1730299884601,-539.45,0.00032876,5]
[341038331,1730299884610,-588.77751535,0.00032876,5]
[341038332,1730299884620,-507.91937062,0.00032876,5]
[341038333,1730299884630,-500.0,0.00032876,5]
[341038334,1730299884639,-500.0,0.00032876,2]
[341038335,1730299884649,-207.39275826,0.00032876,5]
[341038336,1730299884658,-500.0,0.00032876,5]
[341038337,1730299884667,-500.0,0.00032876,5]
[341038338,1730299884677,-975.25,0.00032876,5]
[341038339,1730299884686,-500.0,0.00032876,5]
[341038340,1730299884696,-1354.01,0.00032876,5]
[341038341,1730299884705,-1051.76,0.00032876,5]
[341038342,1730299884715,-520.92377539,0.00032876,5]
[341038343,1730299884725,-500.0,0.00032876,5]
[341038344,1730299884734,-1468.71,0.00032876,5]
[341038345,1730299884743,-3673.0,0.00032876,5]
[341038346,1730299884759,-151.0,0.00032876,7]
[341038347,1730299884769,-151.0,0.00032876,7]
[341038348,1730299884778,-512.10969709,0.00032876,5]
[341038349,1730299884788,-500.0,0.00032876,5]
[341038350,1730299884797,-906.56,0.00032876,30]
[341038351,1730299884807,-151.0,0.00032876,7]
[341038352,1730299884817,-500.0,0.00032876,5]
[341038353,1730299884826,-500.0,0.00032876,5]
[341038354,1730299884835,-500.0,0.00032876,5]
[341038355,1730299884845,-500.0,0.00032876,5]
[341038356,1730299884855,-500.0,0.00032876,5]
[341038357,1730299884866,-500.0,0.00032876,5]
[341038358,1730299884879,-500.0,0.00032876,5]
[341038359,1730299884889,-500.0,0.00032876,5]
[341038360,1730299884898,-500.0,0.00032876,5]
[341038361,1730299884908,-830.86,0.00032876,5]
[341038362,1730299884918,-500.0,0.00032876,5]
[341038363,1730299884927,-500.0,0.00032876,5]
[341038364,1730299884937,-1086.86,0.00032876,5]
[341038365,1730299884948,-500.0,0.00032876,5]
[341038366,1730299884959,-241.472908,0.00032876,7]
[341038367,1730299884968,-241.472908,0.00032876,7]
[341038368,1730299884977,-500.0,0.00032876,5]
[341038369,1730299884987,-241.472908,0.00032876,7]
[341038370,1730299884997,-241.472908,0.00032876,7]
[341038371,1730299885010,-500.0,0.00032876,5]
[341038372,1730299885020,-646.72,0.00032876,5]
[341038373,1730299885029,-500.0,0.00032876,5]
[341038374,1730299885038,-241.472908,0.00032876,7]
[341038375,1730299885048,-2002.55,0.00032876,5]
[341038376,1730299885057,-241.472908,0.00032876,7]
[341038377,1730299885067,-500.0,0.00032876,5]
[341038378,1730299885076,-241.472908,0.00032876,7]
[341038379,1730299885086,-500.0,0.00032876,5]
[341038380,1730299885096,-241.472908,0.00032876,7]
[341038381,1730299885106,-500.0,0.00032876,5]
[341038382,1730299885115,-500.0,0.00032876,5]
[341038383,1730299885125,-500.0,0.00032876,5]
[341038384,1730299885137,-500.0,0.00032876,5]
[341038385,1730299885147,-500.0,0.00032876,5]
[341038386,1730299885156,-500.0,0.00032876,5]
[341038387,1730299885165,-500.0,0.00032876,5]
[341038388,1730299885175,-500.0,0.00032876,5]
[341038389,1730299885184,-500.0,0.00032876,5]
[341038390,1730299885195,-521.179929,0.00032876,2]
[341038391,1730299885205,-584.02941276,0.00032876,5]
[341038392,1730299885214,-500.0,0.00032876,5]
[341038393,1730299885224,-736.0,0.00032876,5]
[341038394,1730299885234,-500.0,0.00032876,5]
[341038395,1730299885244,-545.73,0.00032876,5]
[341038396,1730299885256,-500.0,0.00032876,5]
[341038397,1730299885266,-617.04,0.00032876,5]
[341038398,1730299885276,-645.56,0.00032876,5]
[341038399,1730299885285,-500.0,0.00032876,5]
[341038400,1730299885295,-652.51,0.00032876,5]
[341038401,1730299885305,-500.0,0.00032876,5]
[341038402,1730299885316,-500.0,0.00032876,5]
[341038403,1730299885326,-500.0,0.00032876,5]
[341038404,1730299885337,-636.15,0.00032876,5]
[341038405,1730299885348,-156.81439943,0.00032876,5]
[341038406,1730299885357,-542.47,0.00032876,5]
[341038407,1730299885367,-500.0,0.00032876,5]
[341038408,1730299885376,-726.06,0.00032876,5]
[341038409,1730299885386,-500.0,0.00032876,5]
[341038410,1730299885395,-545.25160881,0.00032876,5]
[341038411,1730299885404,-500.0,0.00032876,5]
[341038412,1730299885414,-505.44933408,0.00032876,5]
[341038413,1730299885425,-901.66,0.00032876,5]
[341038414,1730299885434,-500.0,0.00032876,5]
[341038415,1730299885444,-500.0,0.00032876,5]
[341038416,1730299885455,-500.0,0.00032876,5]
[341038417,1730299885464,-500.0,0.00032876,2]
[341038418,1730299885473,-500.0,0.00032876,5]
[341038419,1730299885483,-500.0,0.00032876,5]
[341038420,1730299885494,-500.0,0.00032876,5]
[341038421,1730299885506,-1220.63,0.00032876,5]
[341038422,1730299885516,-500.0,0.00032876,5]
[341038423,1730299885525,-820.05,0.00032876,5]
[341038424,1730299885535,-644.94,0.00032876,5]
[341038425,1730299885544,-500.0,0.00032876,5]
[341038426,1730299885554,-500.0,0.00032876,5]
[341038427,1730299885563,-637.3,0.00032876,5]
[341038428,1730299885572,-500.0,0.00032876,5]
[341038429,1730299885582,-5935.2,0.00032876,5]
[341038430,1730299885591,-731.89,0.00032876,5]
[341038431,1730299885600,-571.04,0.00032876,5]
[341038432,1730299885610,-500.0,0.00032876,5]
[341038433,1730299885619,-954.6,0.00032876,5]
[341038434,1730299885629,-500.0,0.00032876,5]
[341038435,1730299885638,-500.0,0.00032876,5]
[341038436,1730299885647,-500.0,0.00032876,5]
[341038437,1730299885657,-651.63,0.00032876,5]
[341038438,1730299885666,-500.0,0.00032876,5]
[341038439,1730299885676,-337.83867647,0.00032876,5]
[341038440,1730299885686,-500.0,0.00032876,5]
[341038441,1730299885695,-519.21,0.00032876,5]
[341038442,1730299885704,-626.15,0.00032876,5]
[341038443,1730299885714,-500.0,0.00032876,5]
[341038444,1730299885723,-675.01,0.00032876,5]
[341038445,1730299885732,-500.0,0.00032876,5]
[341038446,1730299885742,-500.0,0.00032876,5]
[341038447,1730299885753,-500.0,0.00032876,5]
[341038448,1730299885762,-500.0,0.00032876,5]
[341038449,1730299885772,-565.89937797,0.00032876,5]
[341038450,1730299885781,-500.0,0.00032876,5]
[341038451,1730299885790,-500.0,0.00032876,5]
[341038452,1730299885800,-150.0,0.00032878,2]
[341038453,1730299885809,-150.0,0.0003288,2]
[341038454,1730299885819,-150.0,0.00032891,2]
[341038455,1730299885829,-150.0,0.00032892,2]
[341038456,1730299885839,-150.0,0.00032896,2]
[341038457,1730299885848,-150.0,0.00032896,2]
[341038458,1730299885858,-150.0,0.00032896,2]
[341038459,1730299885868,-150.0,0.00032898,2]
[341038460,1730299885879,-150.0,0.000329,2]
[341038461,1730299885889,-150.0,0.000329,2]
[341038462,1730299885898,-1800.0,0.000329,12]
[341038463,1730299885907,-301.35400986,0.000329,2]
[341038464,1730299885916,-209.58000746,0.00032902,2]
[341038465,1730299885927,-150.0,0.00032904,2]
[341038466,1730299885936,-150.0,0.00032905,2]
[341038467,1730299885947,-150.0,0.00032909,2]
[341038468,1730299885957,-150.0,0.00032909,2]
[341038469,1730299885967,-150.0,0.00032914,2]
[341038470,1730299885977,-150.0,0.00032918,2]
[341038471,1730299885987,-150.0,0.00032918,2]
[341038472,1730299885996,-150.0,0.0003292,2]
[341038473,1730299886008,-150.0,0.00032922,2]
[341038474,1730299886017,-150.0,0.00032929,2]
[341038475,1730299886026,-150.0,0.00032932,2]
[341038476,1730299886035,-150.0,0.00032933,2]
[341038477,1730299886044,-150.0,0.00032934,2]
[341038478,1730299886053,-150.0,0.00032935,2]
[341038479,1730299886063,-150.0,0.00032937,2]
[341038480,1730299886072,-150.0,0.00032937,2]
[341038481,1730299886082,-150.0,0.00032938,2]
[341038482,1730299886091,-150.0,0.00032938,2]
[341038483,1730299886099,-150.0,0.00032942,2]
[341038484,1730299886109,-150.0,0.00032943,2]
[341038485,1730299886119,-150.0,0.00032944,2]
[341038486,1730299886128,-150.0,0.00032945,2]
[341038487,1730299886137,-150.0,0.00032946,2]
[341038488,1730299886147,-150.0,0.00032952,2]
[341038489,1730299886156,-150.0,0.00032952,2]
[341038490,1730299886166,-150.0,0.00032955,2]
[341038491,1730299886175,-150.0,0.00032958,2]
[341038492,1730299886185,-150.0,0.00032962,2]
[341038493,1730299886194,-150.0,0.00032963,2]
[341038494,1730299886203,-150.0,0.00032963,2]
[341038495,1730299886213,-150.0,0.00032965,2]
[341038496,1730299886223,-150.0,0.00032969,2]
[341038497,1730299886232,-150.0,0.00032972,2]
[341038498,1730299886242,-150.0,0.00032973,2]
[341038499,1730299886253,-150.0,0.00032977,2]
[341038500,1730299886262,-150.0,0.0003298,2]
[341038501,1730299886272,-150.0,0.00032986,2]
[341038502,1730299886281,-150.0,0.00032986,2]
[341038503,1730299886291,-150.0,0.0003299,2]
[341038504,1730299886302,-150.0,0.00032992,2]
[341038505,1730299886311,-150.0,0.00032994,2]
[341038506,1730299886320,-150.0,0.00032996,2]
[341038507,1730299886329,-150.0,0.00032997,2]
[341038508,1730299886339,-150.0,0.00032997,2]
[341038509,1730299886348,-150.0,0.00032998,2]
[341038510,1730299886357,-150.0,0.00033,2]
[341038511,1730299886366,-150.0,0.00033,2]
[341038512,1730299886378,-150.0,0.00033,2]
[341038513,1730299886387,-150.0,0.00033004,2]
[341038514,1730299886396,-150.0,0.00033005,2]
[341038515,1730299886406,-151.80568782,0.00033011,2]
[341038516,1730299886415,-150.0,0.00033023,2]
[341038517,1730299886424,-150.0,0.00033024,2]
[341038518,1730299886434,-150.0,0.00033026,2]
[341038519,1730299886443,-150.0,0.0003303,2]
[341038520,1730299886452,-2003.08347009,0.00033033,15]
[341038521,1730299886461,-150.0,0.00033035,2]
[341038522,1730299886471,-150.0,0.00033038,2]
[341038523,1730299886480,-150.0,0.00033038,2]
[341038524,1730299886490,-150.0,0.00033047,2]
[341038525,1730299886499,-150.0,0.00033049,2]
[341038526,1730299886512,-150.0,0.00033052,2]
[341038527,1730299886522,-150.0,0.00033058,2]
[341038528,1730299886531,-150.0,0.00033063,2]
[341038529,1730299886540,-150.0,0.00033067,2]
[341038530,1730299886550,-150.0,0.00033069,2]
[341038531,1730299886559,-150.0,0.00033075,2]
[341038532,1730299886568,-150.0,0.00033076,2]
[341038533,1730299886577,-150.0,0.00033077,2]
[341038534,1730299886586,-150.0,0.00033079,2]
[341038535,1730299886595,-150.0,0.0003308,2]
[341038536,1730299886605,-150.0,0.00033088,2]
[341038537,1730299886614,-150.0,0.00033089,2]
[341038538,1730299886623,-150.0,0.00033099,2]
[341038539,1730299886633,-150.0,0.00033099,2]
[341038540,1730299886642,-397.0,0.000331,18]
[341038541,1730299886651,-301.35400986,0.000331,2]
[341038542,1730299886660,-262.89,0.00033101,2]
[341038543,1730299886669,-150.0,0.0003311,2]
[341038544,1730299886679,-150.0,0.00033111,2]
[341038545,1730299886687,-150.0,0.00033119,2]
[341038546,1730299886807,-150.0,0.00033121,2]
[341038547,1730299886817,-150.0,0.00033126,2]
[341038548,1730299886828,-150.0,0.00033128,2]
[341038549,1730299886838,-150.0,0.00033128,2]
[341038550,1730299886849,-150.0,0.00033137,2]
[341038551,1730299886859,-150.0,0.00033137,2]
[341038552,1730299886868,-150.0,0.00033141,2]
[341038553,1730299886880,-150.0,0.00033143,2]
[341038554,1730299886890,-150.0,0.00033145,2]
[341038555,1730299886900,-150.0,0.00033145,2]
[341038556,1730299886911,-150.0,0.00033148,2]
[341038557,1730299886921,-3301.51746322,0.00033149,4]
[341038558,1730299886931,-1007.49,0.00033149,5]
[341038559,1730299886940,-1007.49,0.00033149,5]
[341038560,1730299886950,-500.0,0.00033149,2]
[341038561,1730299886959,-500.0,0.00033149,5]
[341038562,1730299886968,-150.0,0.0003315,5]
[341038563,1730299886977,-542.0,0.0003315,5]
[341038564,1730299886987,-500.0,0.0003315,5]
[341038565,1730299886997,-150.0,0.0003315,5]
[341038566,1730299887009,-150.0,0.0003315,5]
[341038567,1730299887018,-500.0,0.0003315,5]
[341038568,1730299887027,-500.0,0.0003315,5]
[341038569,1730299887039,-500.0,0.0003315,5]
[341038570,1730299887048,-500.0,0.0003315,5]
[341038571,1730299887058,-487.87566064,0.0003315,5]
[341038572,1730299887068,-500.0,0.0003315,5]
[341038573,1730299887077,-500.0,0.0003315,5]
[341038574,1730299887086,-542.96836016,0.0003315,5]
[341038575,1730299887096,-500.0,0.0003315,5]
[341038576,1730299887106,-500.0,0.0003315,5]
[341038577,1730299887116,-500.0,0.0003315,5]
[341038578,1730299887125,-319.39160188,0.0003315,5]
[341038579,1730299887135,-500.0,0.0003315,5]
[341038580,1730299887144,-319.57249054,0.0003315,5]
[341038581,1730299887153,-500.0,0.0003315,5]
[341038582,1730299887163,-500.0,0.0003315,5]
[341038583,1730299887172,-500.0,0.0003315,5]
[341038584,1730299887183,-500.0,0.0003315,5]
[341038585,1730299887192,-500.0,0.0003315,5]
[341038586,1730299887201,-622.3638317,0.0003315,5]
[341038587,1730299887211,-500.0,0.0003315,5]
[341038588,1730299887221,-500.0,0.0003315,5]
[341038589,1730299887230,-500.0,0.0003315,5]
[341038590,1730299887240,-500.0,0.0003315,5]
[341038591,1730299887250,-500.0,0.0003315,5]
[341038592,1730299887261,-510.48896469,0.0003315,5]
[341038593,1730299887270,-500.0,0.0003315,5]
[341038594,1730299887279,-500.0,0.0003315,5]
[341038595,1730299887288,-500.0,0.0003315,5]
[341038596,1730299887298,-819.18,0.0003315,5]
[341038597,1730299887307,-901.94,0.0003315,5]
[341038598,1730299887317,-215.34398795,0.0003315,5]
[341038599,1730299887327,-872.05,0.0003315,5]
[341038600,1730299887337,-500.0,0.0003315,5]
[341038601,1730299887347,-500.0,0.0003315,5]
[341038602,1730299887357,-500.0,0.0003315,7]
[341038603,1730299887366,-500.0,0.0003315,5]
[341038604,1730299887375,-336.60836593,0.0003315,5]
[341038605,1730299887384,-214.63001567,0.0003315,5]
[341038606,1730299887394,-500.0,0.0003315,5]
[341038607,1730299887404,-407.12664783,0.0003315,5]
[341038608,1730299887413,-583.57,0.0003315,5]
[341038609,1730299887422,-500.0,0.0003315,5]
[341038610,1730299887431,-500.0,0.0003315,5]
[341038611,1730299887440,-498.99900003,0.0003315,5]
[341038612,1730299887449,-500.0,0.0003315,5]
[341038613,1730299887458,-500.0,0.0003315,5]
[341038614,1730299887467,-500.0,0.0003315,5]
[341038615,1730299887476,-509.79101415,0.0003315,5]
[341038616,1730299887485,-1319.61,0.0003315,5]
[341038617,1730299887494,-500.0,0.0003315,5]
[341038618,1730299887505,-730.99,0.0003315,5]
[341038619,1730299887513,-500.0,0.0003315,5]
[341038620,1730299887522,-1251.63,0.0003315,5]
[341038621,1730299887531,-500.0,0.0003315,5]
[341038622,1730299887540,-561.15,0.0003315,5]
[341038623,1730299887549,-500.0,0.0003315,5]
[341038624,1730299887558,-570.8137744,0.0003315,5]
[341038625,1730299887567,-500.0,0.0003315,5]
[341038626,1730299887576,-500.0,0.0003315,5]
[341038627,1730299887585,-500.0,0.0003315,5]
[341038628,1730299887594,-700.33,0.0003315,5]
[341038629,1730299887603,-255.66428718,0.0003315,5]
[341038630,1730299887612,-500.0,0.0003315,5]
[341038631,1730299887621,-553.67969999,0.0003315,5]
[341038632,1730299887630,-500.0,0.0003315,5]
[341038633,1730299887639,-640.39,0.0003315,5]
[341038634,1730299887649,-520.52,0.0003315,5]
[341038635,1730299887658,-500.0,0.0003315,5]
[341038636,1730299887667,-500.0,0.0003315,5]
[341038637,1730299887676,-970.04,0.0003315,5]
[341038638,1730299887685,-500.0,0.0003315,5]
[341038639,1730299887694,-500.0,0.0003315,5]
[341038640,1730299887703,-391.95880059,0.0003315,5]
[341038641,1730299887712,-500.0,0.0003315,5]
[341038642,1730299887721,-500.0,0.0003315,5]
[341038643,1730299887730,-556.21,0.0003315,5]
[341038644,1730299887739,-500.0,0.0003315,5]
[341038645,1730299887748,-500.0,0.0003315,5]
[341038646,1730299887759,-967.06,0.0003315,5]
[341038647,1730299887768,-500.0,0.0003315,5]
[341038648,1730299887777,-500.0,0.0003315,5]
[341038649,1730299887786,-500.0,0.0003315,7]
[341038650,1730299887796,-621.6929999,0.0003315,5]
[341038651,1730299887805,-500.0,0.0003315,5]
[341038652,1730299887817,-547.05188097,0.0003315,5]
[341038653,1730299887826,-731.56,0.0003315,5]
[341038654,1730299887836,-500.0,0.0003315,5]
[341038655,1730299887845,-670.65,0.0003315,5]
[341038656,1730299887855,-1276.1,0.0003315,5]
[341038657,1730299887866,-1820.04,0.0003315,5]
[341038658,1730299887877,-500.0,0.0003315,5]
[341038659,1730299887887,-500.0,0.0003315,5]
[341038660,1730299887898,-812.27,0.0003315,5]
[341038661,1730299887908,-834.4,0.0003315,5]
[341038662,1730299887919,-500.0,0.0003315,5]
[341038663,1730299887930,-500.0,0.0003315,5]
[341038664,1730299887941,-665.61,0.0003315,5]
[341038665,1730299887950,-500.0,0.0003315,5]
[341038666,1730299887961,-500.0,0.0003315,5]
[341038667,1730299887969,-500.0,0.0003315,5]
[341038668,1730299887978,-500.0,0.0003315,5]
[341038669,1730299887988,-500.0,0.0003315,5]
[341038670,1730299887997,-783.96,0.0003315,2]
[341038671,1730299888007,-500.0,0.0003315,5]
[341038672,1730299888016,-627.24354986,0.0003315,5]
[341038673,1730299888025,-500.0,0.0003315,5]
[341038674,1730299888035,-500.0,0.0003315,5]
[341038675,1730299888043,-564.19979089,0.0003315,5]
[341038676,1730299888051,-500.0,0.0003315,5]
[341038677,1730299888060,-500.0,0.0003315,5]
[341038678,1730299888069,-500.0,0.0003315,5]
[341038679,1730299888078,-2000.0,0.0003315,5]
[341038680,1730299888087,-500.0,0.0003315,5]
[341038681,1730299888097,-890.32,0.0003315,5]
[341038682,1730299888106,-591.78,0.0003315,5]
[341038683,1730299888115,-901.09,0.0003315,5]
[341038684,1730299888124,-500.0,0.0003315,5]
[341038685,1730299888134,-500.0,0.0003315,5]
[341038686,1730299888143,-577.12289994,0.0003315,5]
[341038687,1730299888153,-500.0,0.0003315,5]
[341038688,1730299888162,-643.6269713,0.0003315,5]
[341038689,1730299888171,-500.0,0.0003315,5]
[341038690,1730299888181,-1187.01,0.0003315,5]
[341038691,1730299888190,-500.0,0.0003315,5]
[341038692,1730299888199,-500.0,0.0003315,5]
[341038693,1730299888208,-500.0,0.0003315,5]
[341038694,1730299888217,-3247.79,0.0003315,5]
[341038695,1730299888226,-500.0,0.0003315,5]
[341038696,1730299888236,-500.0,0.0003315,5]
[341038697,1730299888245,-500.0,0.0003315,5]
[341038698,1730299888254,-500.0,0.0003315,5]
[341038699,1730299888264,-3761.91,0.0003315,5]
[341038700,1730299888273,-500.0,0.0003315,5]
[341038701,1730299888282,-1089.14,0.0003315,5]
[341038702,1730299888292,-500.0,0.0003315,5]
[341038703,1730299888302,-524.26,0.0003315,5]
[341038704,1730299888311,-500.0,0.0003315,5]
[341038705,1730299888320,-500.0,0.0003315,5]
[341038706,1730299888329,-500.0,0.0003315,5]
[341038707,1730299888338,-500.0,0.0003315,5]
[341038708,1730299888348,-500.0,0.0003315,5]
[341038709,1730299888357,-604.16,0.0003315,5]
[341038710,1730299888366,-500.0,0.0003315,5]
[341038711,1730299888375,-184.22224866,0.0003315,5]
[341038712,1730299888384,-500.0,0.0003315,5]
[341038713,1730299888393,-595.74,0.0003315,5]
[341038714,1730299888403,-562.07,0.0003315,5]
[341038715,1730299888412,-500.0,0.0003315,5]
[341038716,1730299888420,-500.0,0.0003315,5]
[341038717,1730299888430,-500.0,0.0003315,5]
[341038718,1730299888439,-500.0,0.0003315,5]
[341038719,1730299888449,-500.0,0.0003315,5]
[341038720,1730299888460,-500.0,0.0003315,5]
[341038721,1730299888472,-500.0,0.0003315,5]
[341038722,1730299888481,-500.0,0.0003315,5]
[341038723,1730299888490,-500.0,0.0003315,5]
[341038724,1730299888499,-1108.52,0.0003315,5]
[341038725,1730299888511,-500.0,0.0003315,5]
[341038726,1730299888520,-500.0,0.0003315,5]
[341038727,1730299888529,-899.38,0.0003315,5]
[341038728,1730299888538,-916.14,0.0003315,5]
[341038729,1730299888547,-500.0,0.0003315,5]
[341038730,1730299888556,-500.0,0.0003315,5]
[341038731,1730299888565,-500.0,0.0003315,5]
[341038732,1730299888574,-500.0,0.0003315,5]
[341038733,1730299888583,-1147.86,0.0003315,5]
[341038734,1730299888593,-617.7,0.0003315,5]
[341038735,1730299888603,-500.0,0.0003315,5]
[341038736,1730299888612,-1088.55,0.0003315,5]
[341038737,1730299888621,-500.0,0.0003315,5]
[341038738,1730299888631,-500.0,0.0003315,5]
[341038739,1730299888642,-883.27,0.0003315,5]
[341038740,1730299888651,-579.65,0.0003315,5]
[341038741,1730299888660,-500.0,0.0003315,5]
[341038742,1730299888670,-500.0,0.0003315,5]
[341038743,1730299888679,-500.0,0.0003315,5]
[341038744,1730299888688,-6627.6,0.0003315,5]
[341038745,1730299888697,-1281.54,0.0003315,5]
[341038746,1730299888706,-670.52,0.0003315,5]
[341038747,1730299888715,-500.0,0.0003315,5]
[341038748,1730299888724,-1308.28,0.0003315,5]
[341038749,1730299888733,-500.0,0.0003315,5]
[341038750,1730299888742,-500.0,0.0003315,5]
[341038751,1730299888751,-594.96,0.0003315,5]
[341038752,1730299888763,-500.0,0.0003315,5]
[341038753,1730299888773,-1527.21,0.0003315,5]
[341038754,1730299888782,-1968.52,0.0003315,5]
[341038755,1730299888792,-500.0,0.0003315,5]
[341038756,1730299888803,-379.09248712,0.0003315,5]
[341038757,1730299888812,-1235.78,0.0003315,5]
[341038758,1730299888823,-2222.72,0.0003315,5]
[341038759,1730299888833,-500.0,0.0003315,5]
[341038760,1730299888843,-500.0,0.0003315,5]
[341038761,1730299888853,-200.0,0.0003315,5]
[341038762,1730299888863,-500.0,0.0003315,5]
[341038763,1730299888875,-1647.28,0.0003315,5]
[341038764,1730299888886,-3841.76,0.0003315,5]
[341038765,1730299888895,-509.11,0.0003315,5]
[341038766,1730299888904,-993.65,0.0003315,5]
[341038767,1730299888914,-500.0,0.0003315,5]
[341038768,1730299888923,-500.0,0.0003315,5]
[341038769,1730299888933,-862.1,0.0003315,5]
[341038770,1730299888942,-500.0,0.0003315,5]
[341038771,1730299888952,-500.0,0.0003315,5]
[341038772,1730299888962,-500.0,0.0003315,5]
[341038773,1730299888971,-203.45803223,0.0003315,5]
[341038774,1730299889091,-500.0,0.0003315,5]
[341038775,1730299889102,-270.30825818,0.0003315,5]
[341038776,1730299889112,-969.25,0.0003315,5]
[341038777,1730299889122,-500.0,0.0003315,5]
[341038778,1730299889131,-500.0,0.0003315,5]
[341038779,1730299889140,-500.0,0.0003315,5]
[341038780,1730299889149,-500.0,0.0003315,5]
[341038781,1730299889160,-500.0,0.0003315,5]
[341038782,1730299889169,-500.0,0.0003315,5]
[341038783,1730299889179,-500.0,0.0003315,5]
[341038784,1730299889188,-500.0,0.0003315,5]
[341038785,1730299889198,-625.17,0.0003315,5]
[341038786,1730299889207,-500.0,0.0003315,5]
[341038787,1730299889217,-500.0,0.0003315,5]
[341038788,1730299889226,-1018.56,0.0003315,5]
[341038789,1730299889236,-500.0,0.0003315,5]
[341038790,1730299889246,-500.0,0.0003315,5]
[341038791,1730299889257,-2839.5182471,0.0003315,2]
[341038792,1730299889267,-1112.57,0.0003315,5]
[341038793,1730299889276,-500.0,0.0003315,5]
[341038794,1730299889285,-691.4,0.0003315,5]
[341038795,1730299889294,-500.0,0.0003315,5]
[341038796,1730299889304,-559.4887931,0.0003315,5]
[341038797,1730299889314,-500.0,0.0003315,5]
[341038798,1730299889324,-500.0,0.0003315,5]
[341038799,1730299889333,-500.0,0.0003315,5]
[341038800,1730299889342,-500.0,0.0003315,5]
[341038801,1730299889352,-1388.66,0.0003315,5]
[341038802,1730299889362,-151.0,0.0003315,7]
[341038803,1730299889372,-151.0,0.0003315,7]
[341038804,1730299889383,-500.0,0.0003315,5]
[341038805,1730299889393,-500.0,0.0003315,5]
[341038806,1730299889405,-151.0,0.0003315,7]
[341038807,1730299889415,-2096.63,0.0003315,5]
[341038808,1730299889424,-500.0,0.0003315,5]
[341038809,1730299889434,-500.0,0.0003315,5]
[341038810,1730299889445,-4922.3757053,0.0003315,2]
[341038811,1730299889455,-453.83052302,0.0003315,5]
[341038812,1730299889466,-500.0,0.0003315,5]
[341038813,1730299889476,-500.0,0.0003315,5]
[341038814,1730299889485,-500.0,0.0003315,5]
[341038815,1730299889494,-548.91188339,0.0003315,5]
[341038816,1730299889505,-500.0,0.0003315,5]
[341038817,1730299889514,-2000.0,0.0003315,5]
[341038818,1730299889523,-374.02351264,0.0003315,5]
[341038819,1730299889531,-500.0,0.0003315,5]
[341038820,1730299889541,-500.0,0.0003315,5]